bitfinex/quotes_SOLUSD_20250330
["timestamp","ask_amount","ask_price","bid_price","bid_amount"]
[1743331321078,20.03,125.51,125.47,215.10933979]
[1743331322000,0.03,125.51,125.47,215.10933979]
[1743331323308,0.03,125.51,125.47,223.07913979]
[1743331323878,0.03,125.51,125.47,215.10933979]
[1743331325291,20.03,125.51,125.47,215.10933979]
[1743331328168,27.9974,125.51,125.47,215.10933979]
[1743331329893,27.9974,125.51,125.47,213.45633979]
[1743331330573,18.64964886,125.5,125.47,2.9324284]
[1743331330776,66.51964886,125.5,125.47,2.9324284]
[1743331331394,0.14216157,125.49,125.47,2.9324284]
[1743331333899,55.98146157,125.48,125.47,2.9324284]
[1743331342305,20.0,125.48,125.47,2.9324284]
[1743331344500,47.9,125.51,125.47,2.9324284]
[1743331345004,55.8675,125.51,125.47,2.9324284]
[1743331347612,20.0,125.49,125.47,2.9324284]
[1743331347792,0.03,125.51,125.47,2.9324284]
[1743331348302,0.03,125.51,125.47,132.70643979]
[1743331349504,20.03,125.51,125.47,132.70643979]
[1743331353017,27.9976,125.51,125.47,132.70643979]
[1743331354002,27.9976,125.51,125.47,2.9324284]
[1743331356617,20.03,125.51,125.47,2.9324284]
[1743331357416,27.9976,125.51,125.47,2.9324284]
[1743331361923,95.7863,125.51,125.47,2.9324284]
[1743331362823,66.51964886,125.5,125.47,2.9324284]
[1743331363731,7.9687,125.49,125.47,2.9324284]
[1743331364130,55.8387,125.49,125.47,2.9324284]
[1743331365031,66.51964886,125.48,125.47,2.9324284]
[1743331365533,66.66181043,125.48,125.47,2.9324284]
[1743331365731,74.63111043,125.48,125.47,2.9324284]
[1743331366105,74.63111043,125.48,125.47,2.4324284]
[1743331373542,55.98146157,125.48,125.47,2.4324284]
[1743331373739,0.14216157,125.48,125.47,2.4324284]
[1743331373911,20.0,125.48,125.47,2.4324284]
[1743331374115,55.8383,125.5,125.47,2.4954284]
[1743331374333,20.0,125.48,125.47,2.4954284]
[1743331376044,27.9693,125.48,125.47,2.4954284]
[1743331376247,75.8393,125.48,125.47,2.4954284]
[1743331376746,27.9693,125.48,125.47,2.4954284]
[1743331377043,20.0,125.48,125.47,2.4954284]
[1743331379425,28.11146157,125.48,125.47,2.4954284]
[1743331381246,94.63111043,125.48,125.47,2.4954284]
[1743331383130,75.98146157,125.48,125.47,2.4954284]
[1743331384040,86.51964886,125.42,125.36,1.5885]
[1743331385345,0.14216157,125.41,125.36,1.5885]
[1743331385836,7.9744,125.4,125.36,1.5885]
[1743331390927,7.9744,125.4,125.35,0.022087]
[1743331396742,47.87,125.39,125.35,0.022087]
[1743331396928,7.9744,125.4,125.35,0.022087]
[1743331398433,7.9744,125.4,125.35,0.052087]
[1743331400150,20.0,125.42,125.35,0.052087]
[1743331400347,7.9732,125.42,125.35,129.82609839]
[1743331400655,266.8028,125.43,125.35,136.72609839]
[1743331401431,266.8028,125.43,125.35,144.70319839]
[1743331401635,266.8028,125.43,125.36,1.6106]
[1743331402757,266.8028,125.43,125.36,9.5874]
[1743331405161,266.8028,125.43,125.36,1.6106]
[1743331406455,286.7342,125.43,125.36,1.6106]
[1743331406862,286.7342,125.43,125.36,131.38461139]
[1743331407561,6.3421,125.42,125.36,129.77401139]
[1743331407857,54.2121,125.42,125.35,80.801987]
[1743331408565,55.8438,125.41,125.35,80.801987]
[1743331410564,7.9738,125.41,125.35,210.57599839]
[1743331412061,7.9738,125.41,125.35,210.07599839]
[1743331414467,27.9084,125.41,125.35,210.07599839]
[1743331414767,27.9084,125.41,125.35,216.97599839]
[1743331416855,7.9738,125.41,125.35,216.97599839]
[1743331420782,27.9084,125.41,125.35,216.97599839]
[1743331423866,27.9084,125.41,125.35,217.00599839]
[1743331424067,27.9714,125.41,125.35,217.00599839]
[1743331426156,19.9976,125.41,125.35,217.00599839]
[1743331427281,7.9751,125.39,125.35,217.00599839]
[1743331428391,0.063,125.41,125.35,217.00599839]
[1743331428585,8.037,125.41,125.36,1.6408]
[1743331428772,0.063,125.41,125.36,211.71679839]
[1743331437086,47.933,125.41,125.36,1.6408]
[1743331437983,20.0,125.37,125.35,0.03]
[1743331439382,56.85669151,125.36,125.28,210.07599839]
[1743331439563,56.85669151,125.36,125.29,1.5424]
[1743331439763,7.9776,125.35,125.29,1.5424]
[1743331441478,16.96379151,125.36,125.29,1.5424]
[1743331441673,7.9771,125.36,125.29,0.5424]
[1743331442696,7.9771,125.36,125.29,210.61839839]
[1743331442883,7.9771,125.36,125.29,217.51839839]
[1743331443394,7.9771,125.36,125.29,225.49969839]
[1743331444483,7.9771,125.36,125.29,217.51839839]
[1743331446983,7.9771,125.36,125.29,210.61839839]
[1743331447176,64.83379151,125.36,125.29,210.61839839]
[1743331447606,84.77629151,125.36,125.29,210.61839839]
[1743331448689,84.77629151,125.36,125.29,210.64839839]
[1743331448891,84.83929151,125.36,125.29,210.64839839]
[1743331452809,75.7939,125.34,125.29,80.874387]
[1743331456310,0.14216157,125.33,125.29,80.331987]
[1743331456600,47.87,125.32,125.29,0.03]
[1743331456981,49.4149,125.32,125.29,0.03]
[1743331457178,48.01216157,125.3,125.29,0.03]
[1743331458190,55.99296157,125.3,125.29,0.03]
[1743331458615,74.64261043,125.3,125.29,0.03]
[1743331458900,297.78628787,125.3,125.29,0.03]
[1743331459079,279.13663901,125.3,125.29,0.03]
[1743331459279,297.78628787,125.3,125.29,0.03]
[1743331461225,297.78628787,125.3,125.22,2.8694284]
[1743331461226,20.0,125.26,125.22,2.8694284]
[1743331461393,20.0,125.23,125.22,2.8694284]
[1743331461597,38.64964886,125.23,125.22,2.8694284]
[1743331462287,18.64964886,125.2,125.14,1.5777]
[1743331462900,54.77,125.21,125.14,131.35171139]
[1743331463085,6.9,125.21,125.14,131.35171139]
[1743331463293,6.9,125.21,125.14,129.35171139]
[1743331463715,6.9,125.21,125.14,135.79040259]
[1743331463912,12.02367744,125.22,125.14,143.78120259]
[1743331464214,7.9872,125.2,125.14,135.79040259]
[1743331464398,12.02367744,125.22,125.14,135.79040259]
[1743331464594,12.02367744,125.22,125.14,143.78140259]
[1743331464792,12.02367744,125.22,125.14,224.08338959]
[1743331465015,47.87,125.24,125.15,6.9]
[1743331465213,47.87,125.24,125.15,216.55369839]
[1743331465424,26.77631043,125.25,125.15,216.55369839]
[1743331465927,6.27356091,125.28,125.18,26.5281]
[1743331466085,20.40429522,125.29,125.19,6.92]
[1743331466286,20.40429522,125.29,125.2,9.4889]
[1743331466492,20.40429522,125.29,125.2,219.14259839]
[1743331466892,20.40429522,125.29,125.2,211.15539839]
[1743331467111,18.64964886,125.28,125.2,211.15539839]
[1743331467807,20.40429522,125.29,125.2,211.15539839]
[1743331467990,18.64964886,125.29,125.2,211.15539839]
[1743331468188,26.63124886,125.29,125.21,7.9865]
[1743331468393,26.63124886,125.29,125.21,137.33821139]
[1743331468693,0.14216157,125.28,125.21,129.35171139]
[1743331468889,8.14416157,125.28,125.21,137.33821139]
[1743331469116,0.14216157,125.28,125.21,137.33821139]
[1743331469715,0.14216157,125.29,125.21,137.33821139]
[1743331469917,18.79181043,125.31,125.21,237.60659839]
[1743331470214,7.9808,125.3,125.21,237.60659839]
[1743331470794,18.79181043,125.31,125.21,217.64019839]
[1743331471610,26.77221043,125.31,125.21,217.64019839]
[1743331471805,18.79181043,125.31,125.21,237.60659839]
[1743331472403,26.77221043,125.31,125.21,217.64019839]
[1743331472807,26.77221043,125.31,125.21,237.60659839]
[1743331473000,26.77221043,125.31,125.21,238.10659839]
[1743331473305,26.77221043,125.31,125.21,237.60659839]
[1743331473610,36.50510009,125.31,125.21,217.64019839]
[1743331473810,57.60288966,125.3,125.21,88.287887]
[1743331474121,6.94,125.29,125.21,88.287887]
[1743331474315,25.58964886,125.29,125.21,88.287887]
[1743331474624,7.9821,125.28,125.21,88.287887]
[1743331474825,17.71398966,125.3,125.21,224.57959839]
[1743331475005,25.58964886,125.31,125.21,225.07959839]
[1743331475207,33.57004886,125.31,125.21,245.04599839]
[1743331475531,47.87,125.3,125.21,224.60959839]
[1743331476022,47.87,125.3,125.21,244.57599839]
[1743331476214,47.87,125.3,125.21,224.60959839]
[1743331476407,47.87,125.27,125.21,216.62369839]
[1743331476607,55.8533,125.26,125.21,216.62369839]
[1743331476924,47.87,125.28,125.21,88.318487]
[1743331477112,7.0,125.3,125.21,88.318487]
[1743331477304,0.14216157,125.29,125.21,217.67019839]
[1743331477905,48.01216157,125.29,125.21,237.63659839]
[1743331478106,47.87,125.29,125.21,237.63659839]
[1743331478821,220.93475077,125.33,125.24,20.0]
[1743331479008,47.87,125.32,125.25,1.5522]
[1743331480024,211.40216157,125.33,125.25,1.5522]
[1743331480025,48.01216157,125.33,125.25,1.5522]
[1743331480415,0.14216157,125.32,125.25,1.5522]
[1743331480824,47.87,125.32,125.26,7.9833]
[1743331481223,47.87,125.32,125.25,9.536]
[1743331481421,55.8497,125.32,125.25,1.5522]
[1743331481824,47.87,125.32,125.25,1.5522]
[1743331482029,18.79181043,125.31,125.24,80.301987]
[1743331482228,0.14216157,125.27,125.21,6.4686912]
[1743331482443,47.87,125.26,125.21,6.4686912]
[1743331483316,55.8536,125.26,125.21,6.4686912]
[1743331483732,0.14216157,125.25,125.21,6.4686912]
[1743331483939,48.01216157,125.25,125.21,6.4686912]
[1743331484843,47.87,125.24,125.21,6.4686912]
[1743331485844,48.01216157,125.25,125.21,6.4686912]
[1743331486946,47.87,125.27,125.21,6.4686912]
[1743331487239,55.8528,125.27,125.21,6.4686912]
[1743331487832,47.87,125.27,125.21,6.4686912]
[1743331488133,55.853,125.27,125.21,6.4686912]
[1743331489125,55.853,125.27,125.21,3.9686912]
[1743331489527,18.79181043,125.26,125.21,3.9686912]
[1743331489733,47.87,125.25,125.21,3.9686912]
[1743331491139,18.64964886,125.26,125.21,3.9686912]
[1743331491140,55.8546,125.24,125.21,3.9686912]
[1743331496530,47.87,125.23,125.21,3.9686912]
[1743331497049,55.8542,125.25,125.21,3.9686912]
[1743331501446,55.9172,125.25,125.21,3.9686912]
[1743331502148,47.87,125.23,125.21,3.9686912]
[1743331502448,82.53724886,125.22,125.21,3.9686912]
[1743331503530,166.39174886,125.22,125.12,80.301987]
[1743331503849,166.39174886,125.22,125.08,1.5671]
[1743331503850,47.87,125.14,125.08,1.5671]
[1743331504037,47.87,125.14,125.08,130.91881139]
[1743331504242,7.9923,125.12,125.08,80.301987]
[1743331504656,55.8619,125.13,125.08,80.301987]
[1743331504846,8.002,125.17,125.08,217.64819839]
[1743331505055,8.002,125.17,125.09,0.5]
[1743331505268,47.87,125.16,125.08,218.14819839]
[1743331505766,47.87,125.16,125.09,7.1]
[1743331505933,8.0317,125.22,125.12,20.0]
[1743331506257,55.8568,125.21,125.13,14.8974]
[1743331506466,47.87,125.19,125.13,7.12]
[1743331506867,235.44728133,125.26,125.16,20.0]
[1743331507044,9.5792,125.25,125.16,149.35171139]
[1743331507249,9.5792,125.25,125.13,224.76529839]
[1743331507250,18.64964886,125.22,125.13,224.76529839]
[1743331507458,47.87,125.21,125.13,224.76529839]
[1743331507658,47.87,125.21,125.13,216.77369839]
[1743331507855,49.5392,125.25,125.14,7.991]
[1743331507856,9.5792,125.25,125.14,7.991]
[1743331508043,18.64964886,125.24,125.17,20.0]
[1743331508246,47.87,125.23,125.14,217.64469839]
[1743331508455,18.64964886,125.21,125.14,80.301987]
[1743331508739,47.87,125.2,125.14,80.301987]
[1743331508943,0.063,125.25,125.17,20.0]
[1743331509170,0.063,125.25,125.17,136.51171139]
[1743331509371,0.14216157,125.24,125.17,136.51171139]
[1743331509950,47.933,125.25,125.18,6.2753]
[1743331510478,0.063,125.25,125.19,7.9878]
[1743331510851,0.063,125.25,125.19,217.64149839]
[1743331511880,0.063,125.25,125.22,20.0]
[1743331512081,0.063,125.25,125.22,156.53171139]
[1743331512981,0.063,125.25,125.22,164.51731139]
[1743331513571,0.063,125.25,125.22,216.83369839]
[1743331513878,0.063,125.25,125.18,14.2636]
[1743331513879,0.063,125.25,125.2,7.2]
[1743331514053,0.063,125.25,125.2,136.55171139]
[1743331515387,0.063,125.25,125.2,136.57171139]
[1743331515961,0.063,125.25,125.2,144.55861139]
[1743331516169,0.063,125.25,125.23,20.0]
[1743331516367,0.063,125.25,125.2,144.55861139]
[1743331516881,0.063,125.25,125.2,224.86059839]
[1743331519381,0.063,125.25,125.2,225.36059839]
[1743331519691,0.063,125.25,125.2,216.87369839]
[1743331520190,0.063,125.25,125.2,87.521987]
[1743331520375,47.933,125.25,125.2,87.521987]
[1743331521492,0.063,125.25,125.2,95.509087]
[1743331522092,0.063,125.25,125.2,87.521987]
[1743331523591,0.063,125.25,125.2,95.508987]
[1743331525902,0.063,125.25,125.2,95.538987]
[1743331526694,0.063,125.25,125.2,88.318987]
[1743331526898,0.063,125.25,125.2,95.498987]
[1743331529910,0.063,125.25,125.2,224.85069839]
[1743331532108,0.063,125.25,125.2,216.86369839]
[1743331532315,47.933,125.25,125.2,80.331987]
[1743331532808,47.87,125.23,125.2,0.03]
[1743331533012,47.87,125.21,125.2,0.03]
[1743331533793,55.8565,125.21,125.2,0.03]
[1743331534720,80.56734886,125.21,125.2,0.03]
[1743331536192,80.70951043,125.21,125.2,0.03]
[1743331536811,109.47901043,125.21,125.2,0.03]
[1743331537187,66.66181043,125.18,125.1,209.65369839]
[1743331537490,66.66181043,125.18,125.1,80.301987]
[1743331537688,48.01216157,125.14,125.08,129.35171139]
[1743331537891,48.01216157,125.14,125.07,131.01531139]
[1743331538315,48.01216157,125.14,125.1,0.03]
[1743331538526,56.00336157,125.14,125.1,0.03]
[1743331543422,48.12,125.16,125.1,0.03]
[1743331543619,48.12,125.16,125.1,7.19]
[1743331544325,48.12,125.17,125.1,15.183]
[1743331544837,56.1093,125.17,125.1,15.183]
[1743331545331,56.1093,125.17,125.1,7.19]
[1743331545536,66.91181043,125.16,125.1,0.03]
[1743331545732,1.6202,125.15,125.1,0.03]
[1743331546411,0.14216157,125.13,125.1,0.03]
[1743331551441,8.13386157,125.13,125.1,0.03]
[1743331551950,48.12,125.11,125.1,0.03]
[1743331552250,48.12,125.08,125.0,10.0]
[1743331552554,20.0,125.09,125.0,10.0]
[1743331552555,66.76964886,125.07,125.0,10.0]
[1743331552715,74.76514886,125.07,125.0,17.9997]
[1743331552915,66.76964886,125.07,125.0,17.9997]
[1743331553241,56.1161,125.06,125.0,10.0]
[1743331553610,0.14216157,125.05,125.0,10.0]
[1743331553816,48.12,125.08,125.0,17.9999]
[1743331554320,48.12,125.05,125.0,10.0]
[1743331554529,0.14216157,125.04,125.0,10.0]
[1743331555019,0.14216157,125.07,125.0,147.35121139]
[1743331555232,0.14216157,125.07,125.01,7.26]
[1743331555631,48.12,125.08,125.01,7.26]
[1743331555833,21.805,125.12,125.04,20.0]
[1743331556019,48.12,125.11,125.04,20.0]
[1743331556841,1.6366,125.14,125.06,27.9957]
[1743331557141,48.12,125.14,125.06,27.9957]
[1743331557327,48.12,125.14,125.06,157.34741139]
[1743331557526,48.12,125.14,125.06,137.34741139]
[1743331558044,48.12,125.17,125.09,20.0]
[1743331558216,48.12,125.17,125.1,20.0]
[1743331558422,48.12,125.16,125.09,7.3]
[1743331558952,48.12,125.16,125.11,7.9929]
[1743331559138,0.14216157,125.15,125.11,7.9929]
[1743331559315,0.14216157,125.15,125.1,7.9936]
[1743331559843,48.12,125.17,125.1,7.9936]
[1743331560031,48.12,125.17,125.1,14.6338]
[1743331560440,238.15164886,125.18,125.1,15.1338]
[1743331560631,48.12,125.17,125.11,1.6435]
[1743331560834,48.12,125.17,125.12,7.9923]
[1743331561040,48.12,125.17,125.13,7.3]
[1743331562052,211.5,125.18,125.13,7.3]
[1743331562652,0.063,125.19,125.13,7.3]
[1743331562962,0.063,125.19,125.17,7.9891]
[1743331563248,0.063,125.19,125.17,15.2891]
[1743331563445,0.063,125.19,125.17,7.3]
[1743331565052,0.063,125.19,125.17,15.2885]
[1743331566071,0.063,125.19,125.17,24.0722]
[1743331566853,0.063,125.19,125.18,0.5]
[1743331567023,0.063,125.19,125.18,7.9884]
[1743331567971,0.063,125.19,125.18,137.34011139]
[1743331571277,0.063,125.19,125.18,129.35171139]
[1743331572064,0.063,125.19,125.18,137.34011139]
[1743331573092,0.063,125.19,125.18,217.64209839]
[1743331574192,0.063,125.19,125.18,218.14209839]
[1743331574793,0.063,125.19,125.18,236.79174725]
[1743331575001,0.063,125.25,125.21,20.0]
[1743331575196,0.063,125.25,125.22,7.26]
[1743331575397,0.063,125.25,125.23,7.9853]
[1743331577682,0.063,125.25,125.24,1.5713]
[1743331577866,0.063,125.25,125.24,217.39089839]
[1743331578066,0.063,125.25,125.24,217.89089839]
[1743331578268,0.063,125.25,125.24,211.22499839]
[1743331578586,0.063,125.25,125.24,209.65369839]
[1743331579770,0.063,125.25,125.24,217.63829839]
[1743331580587,0.063,125.25,125.24,80.301987]
[1743331580791,0.063,125.25,125.24,88.286587]
[1743331580995,0.063,125.25,125.24,223.786587]
[1743331583695,0.063,125.25,125.24,224.286587]
[1743331584290,0.063,125.25,125.24,88.786587]
[1743331584473,0.063,125.25,125.24,108.97733586]
[1743331588705,0.063,125.29,125.28,20.0]
[1743331588882,0.063,125.29,125.28,162.677]
[1743331589299,0.063,125.29,125.28,170.6591]
[1743331589814,0.89132,125.34,125.28,170.6591]
[1743331593501,8.86972,125.34,125.28,162.677]
[1743331594590,8.86972,125.34,125.28,142.677]
[1743331598211,66.76964886,125.33,125.27,7.2]
[1743331599109,7.9795,125.32,125.27,7.2]
[1743331599313,7.9795,125.32,125.28,0.063]
[1743331599514,56.0992,125.33,125.28,0.063]
[1743331599811,7.9792,125.33,125.28,0.063]
[1743331600502,48.12,125.32,125.28,0.063]
[1743331600706,7.9792,125.33,125.28,0.063]
[1743331600897,57.01982,125.34,125.28,0.063]
[1743331601593,0.03,125.34,125.28,135.5]
[1743331603214,56.1283,125.34,125.28,135.5]
[1743331603413,7.9795,125.32,125.28,135.5]
[1743331604611,56.0995,125.32,125.28,0.063]
[1743331609401,66.76964886,125.31,125.28,0.063]
[1743331609724,6.612,125.3,125.28,0.063]
[1743331611015,7.9814,125.29,125.28,0.063]
[1743331612901,74.89321043,125.29,125.28,0.063]
[1743331622339,82.89521043,125.29,125.28,0.063]
[1743331626331,74.89321043,125.29,125.28,0.063]
[1743331626532,48.12,125.31,125.28,0.063]
[1743331626954,56.1004,125.31,125.28,0.063]
[1743331628237,56.1286,125.34,125.28,142.6]
[1743331629147,48.15,125.34,125.28,142.6]
[1743331629923,48.15,125.34,125.29,1.5955]
[1743331629924,0.03,125.34,125.29,1.5955]
[1743331630429,0.17216157,125.34,125.29,135.437]
[1743331630649,0.17216157,125.34,125.28,0.063]
[1743331630650,0.14216157,125.32,125.28,0.063]
[1743331632251,8.12186157,125.32,125.28,0.063]
[1743331632453,7.9797,125.32,125.28,0.063]
[1743331634455,7.9789,125.33,125.28,135.5]
[1743331638154,66.76964886,125.32,125.28,135.5]
[1743331638533,66.76964886,125.32,125.28,0.063]
[1743331638758,7.9802,125.31,125.28,0.063]
[1743331640767,48.12,125.3,125.28,0.063]
[1743331641267,66.91181043,125.29,125.28,0.063]
[1743331643064,74.89321043,125.29,125.28,0.063]
[1743331651961,56.101,125.3,125.28,0.063]
[1743331655451,48.26216157,125.29,125.28,0.063]
[1743331655770,66.91181043,125.29,125.28,0.063]
[1743331657369,74.89321043,125.29,125.28,0.063]
[1743331669886,0.14216157,125.29,125.28,0.063]
[1743331671769,48.12,125.31,125.28,0.063]
[1743331672885,56.1003,125.31,125.28,0.063]
[1743331676390,0.14216157,125.3,125.28,0.063]
[1743331676574,66.91181043,125.3,125.28,0.063]
[1743331677385,8.12356157,125.29,125.28,0.063]
[1743331679284,74.89321043,125.29,125.28,0.063]
[1743331687396,56.24356157,125.29,125.28,0.063]
[1743331688096,0.14216157,125.29,125.28,0.063]
[1743331688886,48.12,125.3,125.28,0.063]
[1743331689287,8.55990724,125.31,125.28,0.063]
[1743331689893,259.50216157,125.32,125.28,0.063]
[1743331690203,48.26216157,125.32,125.28,0.063]
[1743331690699,48.12,125.33,125.28,135.5]
[1743331691703,48.12,125.33,125.28,143.482]
[1743331693418,56.0991,125.33,125.28,135.5]
[1743331694107,66.76964886,125.32,125.28,0.063]
[1743331694301,66.76964886,125.31,125.28,0.063]
[1743331695914,0.063,125.36,125.35,20.0]
[1743331696096,0.063,125.36,125.35,249.543887]
[1743331696711,0.063,125.36,125.35,229.543887]
[1743331697597,0.063,125.38,125.37,20.0]
[1743331698488,0.063,125.38,125.35,229.543887]
[1743331704218,0.20516157,125.38,125.35,215.738987]
[1743331704601,0.20516157,125.38,125.32,142.637]
[1743331704797,0.14216157,125.36,125.32,7.2]
[1743331705610,48.26216157,125.36,125.32,7.2]
[1743331705818,48.26216157,125.36,125.31,6.2337]
[1743331707619,56.23966157,125.36,125.31,6.2337]
[1743331707923,0.14216157,125.36,125.31,6.2337]
[1743331708510,8.11916157,125.36,125.31,6.2337]
[1743331708818,8.11916157,125.36,125.31,141.6707]
[1743331711627,0.063,125.38,125.31,149.6506]
[1743331711928,0.063,125.38,125.31,229.952587]
[1743331712610,8.0389,125.38,125.31,229.952587]
[1743331713530,0.063,125.38,125.31,229.952587]
[1743331715421,0.063,125.38,125.32,7.14]
[1743331717545,8.0387,125.38,125.32,222.878987]
[1743331717724,76.098,125.38,125.32,222.878987]
[1743331717923,66.76964886,125.37,125.32,87.441987]
[1743331719037,8.11916157,125.36,125.32,87.441987]
[1743331719210,8.11916157,125.36,125.32,80.301987]
[1743331720011,8.002,125.35,125.32,80.301987]
[1743331720237,8.002,125.35,125.32,215.801987]
[1743331721044,7.9782,125.34,125.32,215.801987]
[1743331721246,15.9799,125.35,125.32,215.801987]
[1743331738053,8.032,125.36,125.32,215.801987]
[1743331738557,8.032,125.36,125.32,223.781387]
[1743331740656,8.002,125.35,125.32,215.801987]
[1743331741945,8.032,125.36,125.32,80.301987]
[1743331742460,16.0091,125.36,125.32,80.301987]
[1743331747068,16.0091,125.36,125.32,215.801987]
[1743331753285,64.1291,125.36,125.32,80.301987]
[1743331754251,84.0716,125.36,125.32,80.301987]
[1743331755874,26.65164886,125.35,125.32,80.301987]
[1743331756079,74.77164886,125.35,125.32,80.301987]
[1743331757857,8.12036157,125.34,125.32,80.301987]
[1743331758553,8.12036157,125.34,125.31,135.563]
[1743331758867,28.06606157,125.34,125.31,135.563]
[1743331764596,28.06606157,125.34,125.31,0.063]
[1743331764892,48.15,125.36,125.31,0.063]
[1743331765072,48.15,125.36,125.31,215.864987]
[1743331765267,48.15,125.36,125.32,6.98]
[1743331765467,0.03,125.36,125.32,6.98]
[1743331766969,0.03,125.36,125.33,7.9789]
[1743331767275,0.03,125.36,125.34,1.5514]
[1743331767574,0.03,125.36,125.34,7.9673]
[1743331769693,0.03,125.36,125.34,15.9455]
[1743331770384,0.03,125.36,125.34,231.747487]
[1743331770697,0.03,125.36,125.34,223.769287]
[1743331780810,0.03,125.36,125.34,223.832287]
[1743331780981,0.03,125.36,125.34,231.810287]
[1743331782488,0.063,125.38,125.36,135.47]
[1743331782689,0.063,125.38,125.37,6.94]
[1743331785280,0.063,125.38,125.37,14.9163]
[1743331785475,0.063,125.41,125.4,20.0]
[1743331785680,0.063,125.41,125.4,235.771987]
[1743331787690,0.063,125.41,125.4,243.746387]
[1743331788179,0.063,125.41,125.4,235.771987]
[1743331791194,0.063,125.41,125.4,243.746387]
[1743331791489,0.063,125.41,125.4,235.771987]
[1743331792202,0.063,125.41,125.4,215.771987]
[1743331792398,0.063,125.41,125.4,222.711987]
[1743331798308,0.063,125.41,125.4,230.686387]
[1743331802318,0.063,125.41,125.4,222.711987]
[1743331808097,0.063,125.41,125.4,215.771987]
[1743331815128,0.063,125.41,125.4,222.711987]
[1743331817337,0.063,125.41,125.4,230.686387]
[1743331817537,0.063,125.41,125.4,222.711987]
[1743331818742,0.063,125.41,125.4,230.686387]
[1743331819825,0.063,125.41,125.4,222.711987]
[1743331823543,0.063,125.41,125.4,230.686387]
[1743331824340,0.063,125.41,125.4,222.711987]
[1743331834161,0.063,125.41,125.4,215.771987]
[1743331839864,0.063,125.41,125.4,214.771987]
[1743331854865,0.063,125.41,125.4,214.834987]
[1743331858386,0.063,125.41,125.4,80.364987]
[1743331862094,8.0368,125.41,125.4,80.364987]
[1743331865596,0.063,125.41,125.4,80.364987]
[1743331870087,0.063,125.41,125.4,214.834987]
[1743331881887,0.063,125.41,125.4,80.364987]
[1743331887097,8.0368,125.41,125.4,80.364987]
[1743331889399,8.0368,125.41,125.4,0.063]
[1743331893506,8.17896157,125.41,125.4,0.063]
[1743331896514,56.17896157,125.41,125.4,0.063]
[1743331897423,74.82861043,125.41,125.4,0.063]
[1743331897800,80.98521043,125.41,125.4,0.063]
[1743331898021,80.98521043,125.41,125.4,0.0001]
[1743331898811,82.61801043,125.41,125.4,0.0001]
[1743331899212,0.063,125.45,125.44,20.0]
[1743331899418,0.063,125.45,125.44,77.71624066]
[1743331899712,0.063,125.45,125.44,105.39495471]
[1743331899910,0.063,125.45,125.44,185.69694171]
[1743331901315,0.063,125.45,125.44,123.578887]
[1743331902800,0.063,125.45,125.44,115.606987]
[1743331904212,0.063,125.47,125.45,118.93546422]
[1743331905214,0.063,125.47,125.44,199.23745122]
[1743331924521,8.003,125.46,125.44,199.23745122]
[1743331925355,8.033,125.47,125.44,199.23745122]
[1743331925642,27.958,125.47,125.44,80.301987]
[1743331926025,8.003,125.46,125.44,80.301987]
[1743331926742,7.9713,125.45,125.44,80.301987]
[1743331926945,7.9713,125.45,125.44,80.364987]
[1743331931526,8.003,125.46,125.44,80.364987]
[1743331933421,7.9713,125.45,125.44,80.364987]
[1743331934442,15.9743,125.45,125.44,80.364987]